fUST/lending_fUST_20250520
["ID","MTS","AMOUNT","RATE_DAILY","PERIOD"]
[361655688,1747671053081,-1419.13,0.00023835,4]
[361655689,1747671053091,-403.7472193,0.00023835,4]
[361655690,1747671053100,-1419.13,0.00023835,4]
[361655691,1747671053110,-430.0,0.00023835,4]
[361655692,1747671053120,-525.79789111,0.00023835,4]
[361655693,1747671053130,-1419.13,0.00023835,4]
[361655694,1747671053139,-1419.13,0.00023835,4]
[361655695,1747671053148,-430.0,0.00023835,4]
[361655696,1747671053158,-1419.13,0.00023835,4]
[361655697,1747671053168,-1419.13,0.00023835,4]
[361655698,1747671053178,-1419.13,0.00023835,4]
[361655699,1747671053189,-1419.13,0.00023835,4]
[361655700,1747671053198,-430.0,0.00023835,4]
[361655701,1747671053207,-1419.13,0.00023835,4]
[361655702,1747671053216,-1419.13,0.00023835,4]
[361655703,1747671053226,-1419.13,0.00023835,4]
[361655704,1747671053235,-1419.13,0.00023835,4]
[361655705,1747671053247,-430.0,0.00023835,4]
[361655706,1747671053258,-1419.13,0.00023835,4]
[361655707,1747671053268,-1419.13,0.00023835,4]
[361655708,1747671053278,-1419.14042197,0.00023835,4]
[361655709,1747671053289,-639.33,0.00023835,4]
[361655710,1747671053299,-430.0,0.00023835,4]
[361655711,1747671053311,-430.0,0.00023835,4]
[361655712,1747671053321,-430.0,0.00023835,4]
[361655713,1747671053332,-430.0,0.00023835,4]
[361655714,1747671053342,-430.0,0.00023835,4]
[361655715,1747671053353,-450.0,0.00023835,4]
[361655716,1747671053363,-400.61788994,0.00023835,4]
[361655717,1747671053373,-430.0,0.00023835,4]
[361655718,1747671053384,-450.0,0.00023835,4]
[361655719,1747671053393,-430.0,0.00023835,4]
[361655720,1747671053402,-430.0,0.00023835,4]
[361655721,1747671053412,-430.0,0.00023835,4]
[361655722,1747671053422,-569.56,0.00023835,4]
[361655723,1747671053431,-430.0,0.00023835,4]
[361655724,1747671053441,-7409.43,0.00023835,4]
[361655725,1747671053451,-430.0,0.00023835,4]
[361655726,1747671053460,-450.0,0.00023835,4]
[361655727,1747671053470,-430.0,0.00023835,4]
[361655728,1747671053480,-430.0,0.00023835,4]
[361655729,1747671053490,-430.0,0.00023835,4]
[361655730,1747671053499,-430.0,0.00023835,4]
[361655731,1747671053509,-430.0,0.00023835,4]
[361655732,1747671053518,-450.0,0.00023835,4]
[361655733,1747671053528,-4156.95,0.00023835,4]
[361655734,1747671053537,-430.0,0.00023835,4]
[361655735,1747671053547,-430.0,0.00023835,4]
[361655736,1747671053557,-430.0,0.00023835,4]
[361655737,1747671053566,-430.0,0.00023835,4]
[361655738,1747671053575,-430.0,0.00023835,4]
[361655739,1747671053585,-430.0,0.00023835,4]
[361655740,1747671053594,-430.0,0.00023835,4]
[361655741,1747671053696,-430.0,0.00023835,4]
[361655742,1747671053707,-401.12213207,0.00023835,4]
[361655743,1747671053716,-775.26,0.00023835,4]
[361655744,1747671053726,-430.0,0.00023835,4]
[361655745,1747671053736,-450.0,0.00023835,4]
[361655746,1747671053745,-457.24858843,0.00023835,4]
[361655747,1747671053755,-400.53730689,0.00023835,4]
[361655748,1747671053765,-430.0,0.00023835,4]
[361655749,1747671053774,-519.53,0.00023835,4]
[361655750,1747671053784,-450.0,0.00023835,4]
[361655751,1747671053793,-430.0,0.00023835,4]
[361655752,1747671053804,-430.0,0.00023835,4]
[361655753,1747671053814,-450.0,0.00023835,4]
[361655754,1747671053824,-430.0,0.00023835,4]
[361655755,1747671053833,-430.0,0.00023835,4]
[361655756,1747671053843,-5368.43,0.00023835,4]
[361655757,1747671053854,-430.0,0.00023835,4]
[361655758,1747671053864,-310.46633844,0.00023835,4]
[361655759,1747671053874,-400.54637559,0.00023835,4]
[361655760,1747671053884,-2183.73,0.00023835,4]
[361655761,1747671053894,-430.0,0.00023835,4]
[361655762,1747671053903,-430.0,0.00023835,4]
[361655763,1747671053914,-5019.48,0.00023835,4]
[361655764,1747671053923,-430.0,0.00023835,4]
[361655765,1747671053933,-204.36059249,0.00023835,4]
[361655766,1747671053943,-370.0,0.00023835,4]
[361655767,1747671053952,-430.0,0.00023835,4]
[361655768,1747671053962,-430.0,0.00023835,4]
[361655769,1747671053972,-457.03698808,0.00023835,4]
[361655770,1747671053982,-430.0,0.00023835,4]
[361655771,1747671053992,-1925.69,0.00023835,4]
[361655772,1747671054002,-430.0,0.00023835,4]
[361655773,1747671054012,-430.0,0.00023835,4]
[361655774,1747671054022,-430.0,0.00023835,4]
[361655775,1747671054032,-450.0,0.00023835,4]
[361655776,1747671054041,-430.0,0.00023835,4]
[361655777,1747671054051,-430.0,0.00023835,4]
[361655778,1747671054060,-430.0,0.00023835,4]
[361655779,1747671054070,-430.0,0.00023835,4]
[361655780,1747671054079,-1132.24,0.00023835,4]
[361655781,1747671054089,-430.0,0.00023835,4]
[361655782,1747671054099,-450.0,0.00023835,4]
[361655783,1747671054109,-430.0,0.00023835,4]
[361655784,1747671054119,-400.0,0.00023835,4]
[361655785,1747671054129,-430.0,0.00023835,4]
[361655786,1747671054138,-382.14099704,0.00023835,4]
[361655787,1747671054148,-214.01649776,0.00023835,4]
[361655788,1747671054157,-430.0,0.00023835,4]
[361655789,1747671054166,-430.0,0.00023835,4]
[361655790,1747671054176,-430.0,0.00023835,4]
[361655791,1747671054185,-1634.92,0.00023835,4]
[361655792,1747671054195,-1327.41,0.00023835,4]
[361655793,1747671054205,-430.0,0.00023835,4]
[361655794,1747671054214,-430.0,0.00023835,4]
[361655795,1747671054223,-151.0,0.00023835,7]
[361655796,1747671054233,-1192.35,0.00023835,4]
[361655797,1747671054243,-175.078776,0.00023835,7]
[361655798,1747671054253,-430.0,0.00023835,4]
[361655799,1747671054262,-430.0,0.00023835,4]
[361655800,1747671054271,-408.56556869,0.00023835,4]
[361655801,1747671054281,-937.09,0.00023835,4]
[361655802,1747671054290,-430.0,0.00023835,4]
[361655803,1747671054299,-430.0,0.00023835,4]
[361655804,1747671054309,-2379.01,0.00023835,4]
[361655805,1747671054322,-430.0,0.00023835,4]
[361655806,1747671054333,-430.0,0.00023835,4]
[361655807,1747671054343,-400.0,0.00023835,4]
[361655808,1747671054352,-430.0,0.00023835,4]
[361655809,1747671054363,-430.0,0.00023835,4]
[361655810,1747671054372,-464.09791801,0.00023835,4]
[361655811,1747671054382,-3109.59,0.00023835,4]
[361655812,1747671054393,-430.0,0.00023835,4]
[361655813,1747671054403,-430.0,0.00023835,4]
[361655814,1747671054413,-390.0,0.00023835,4]
[361655815,1747671054422,-976.43,0.00023835,4]
[361655816,1747671054432,-430.0,0.00023835,4]
[361655817,1747671054441,-300.0,0.00023835,4]
[361655818,1747671054450,-1361.49,0.00023835,4]
[361655819,1747671054460,-430.0,0.00023835,4]
[361655820,1747671054469,-430.0,0.00023835,4]
[361655821,1747671054479,-430.0,0.00023835,4]
[361655822,1747671054489,-430.0,0.00023835,4]
[361655823,1747671054499,-430.0,0.00023835,4]
[361655824,1747671054508,-512.25,0.00023835,4]
[361655825,1747671054518,-430.0,0.00023835,4]
[361655826,1747671054527,-500.0,0.00023835,4]
[361655827,1747671054537,-430.0,0.00023835,4]
[361655828,1747671054547,-430.0,0.00023835,4]
[361655829,1747671054556,-2997.96,0.00023835,4]
[361655830,1747671054565,-430.0,0.00023835,4]
[361655831,1747671054575,-430.0,0.00023835,4]
[361655832,1747671054585,-467.34,0.00023835,4]
[361655833,1747671054595,-430.0,0.00023835,4]
[361655834,1747671054604,-430.0,0.00023835,4]
[361655835,1747671054614,-1582.13,0.00023835,4]
[361655836,1747671054623,-430.0,0.00023835,4]
[361655837,1747671054633,-430.0,0.00023835,4]
[361655838,1747671054642,-430.0,0.00023835,4]
[361655839,1747671054651,-310.0,0.00023835,4]
[361655840,1747671054661,-430.0,0.00023835,4]
[361655841,1747671054670,-430.0,0.00023835,4]
[361655842,1747671054680,-430.0,0.00023835,4]
[361655843,1747671054689,-430.0,0.00023835,4]
[361655844,1747671054698,-430.0,0.00023835,4]
[361655845,1747671054707,-1918.87,0.00023835,4]
[361655846,1747671054717,-430.0,0.00023835,4]
[361655847,1747671054726,-310.0,0.00023835,4]
[361655848,1747671054736,-430.0,0.00023835,4]
[361655849,1747671054745,-430.0,0.00023835,4]
[361655850,1747671054755,-430.0,0.00023835,4]
[361655851,1747671054764,-430.0,0.00023835,4]
[361655852,1747671054774,-705.64,0.00023835,4]
[361655853,1747671054783,-430.0,0.00023835,4]
[361655854,1747671054792,-400.76752483,0.00023835,4]
[361655855,1747671054802,-470.21,0.00023835,4]
[361655856,1747671054812,-1014.89,0.00023835,4]
[361655857,1747671054821,-430.0,0.00023835,4]
[361655858,1747671054831,-400.91451024,0.00023835,4]
[361655859,1747671054840,-974.8,0.00023835,4]
[361655860,1747671054849,-430.0,0.00023835,4]
[361655861,1747671054859,-430.0,0.00023835,4]
[361655862,1747671054868,-1491.83,0.00023835,4]
[361655863,1747671054877,-430.0,0.00023835,4]
[361655864,1747671054886,-1006.47,0.00023835,4]
[361655865,1747671054896,-4346.38,0.00023835,4]
[361655866,1747671054906,-430.0,0.00023835,4]
[361655867,1747671054916,-430.0,0.00023835,4]
[361655869,1747671054926,-507.82,0.00023835,4]
[361655870,1747671054935,-430.0,0.00023835,4]
[361655871,1747671054945,-400.53948181,0.00023835,4]
[361655872,1747671054954,-430.0,0.00023835,4]
[361655873,1747671054964,-402.01186613,0.00023835,4]
[361655874,1747671054973,-430.0,0.00023835,4]
[361655875,1747671054982,-439.29799493,0.00023835,4]
[361655876,1747671054992,-653.91,0.00023835,4]
[361655877,1747671055001,-430.0,0.00023835,4]
[361655878,1747671055011,-1419.85,0.00023835,4]
[361655879,1747671055021,-430.0,0.00023835,4]
[361655880,1747671055031,-1148.52,0.00023835,4]
[361655881,1747671055041,-430.0,0.00023835,4]
[361655882,1747671055051,-430.0,0.00023835,4]
[361655883,1747671055061,-430.0,0.00023835,4]
[361655884,1747671055070,-430.0,0.00023835,4]
[361655885,1747671055080,-450.0,0.00023835,4]
[361655886,1747671055089,-430.0,0.00023835,4]
[361655887,1747671055099,-430.0,0.00023835,4]
[361655888,1747671055108,-430.0,0.00023835,4]
[361655889,1747671055118,-157.85,0.00023835,2]
[361655890,1747671055127,-323.64939353,0.00023836,2]
[361655891,1747671055137,-1200.0,0.00023849,2]
[361655892,1747671055146,-157.947285,0.00023868,15]
[361655893,1747671055155,-500.0,0.00023873,2]
[361655894,1747671055165,-500.0,0.00023873,2]
[361655895,1747671055174,-531.05486349,0.00023873,2]
[361655896,1747671055184,-500.0,0.00023873,2]
[361655897,1747671055193,-500.0,0.00023873,2]
[361655898,1747671055203,-500.11246726,0.00023873,2]
[361655899,1747671055213,-500.0,0.00023873,2]
[361655900,1747671055222,-500.0,0.00023873,2]
[361655901,1747671055232,-500.0,0.00023873,2]
[361655902,1747671055241,-500.0,0.00023873,2]
[361655903,1747671055250,-500.0,0.00023873,2]
[361655904,1747671055260,-500.0,0.00023873,2]
[361655905,1747671055269,-500.0,0.00023873,2]
[361655906,1747671055278,-159.35616,0.00023875,9]
[361655907,1747671055288,-10872.38156819,0.00023878,2]
[361655908,1747671055297,-507.00525443,0.00023888,2]
[361655909,1747671055623,-1284.75909764,0.00023888,2]
[361655962,1747671207794,1410.0,0.00027397,120]
[361655964,1747671225689,9000.58,0.00025121,30]
[361656013,1747671518880,789.73643208,0.00025098,30]
[361656017,1747671611908,2995.45961831,0.00025107,120]
[361656580,1747671675038,177.377973,0.00027397,120]
[361657787,1747672160439,192.499984,0.00016256,120]
[361657849,1747672232450,-433.8591904,0.00013292,2]
[361657851,1747672232462,-4566.1408096,0.00013292,2]
[361657853,1747672232471,-360.465834,0.00013699,2]
[361657855,1747672232480,-818.77556526,0.000149,2]
[361657857,1747672232489,-369.60178198,0.00015,2]
[361657859,1747672232498,-818.77556515,0.00015279,2]
[361657861,1747672232508,-818.77556515,0.00015659,2]
[361657863,1747672232517,-818.77556515,0.00016038,2]
[361657865,1747672232527,-192.499984,0.00016256,2]
[361657867,1747672232536,-85.84489834,0.00016417,2]
[361657870,1747672232558,-732.93066681,0.00016417,2]
[361657872,1747672232567,-818.77556515,0.00016797,2]
[361657874,1747672232576,-818.77556515,0.00017176,2]
[361657876,1747672232586,-818.77556515,0.00017555,2]
[361657878,1747672232595,-818.77556515,0.00017934,2]
[361657880,1747672232605,-818.77556515,0.00018314,2]
[361657882,1747672232615,-818.77556515,0.00018693,2]
[361657884,1747672232624,-170.43389065,0.00018787,2]
[361657886,1747672232633,-210.231655,0.00018972,2]
[361657888,1747672232643,-31250.98800778,0.00019,2]
[361657890,1747672232652,-50880.46625612,0.00019,7]
[361657892,1747672232661,-210.231655,0.00019025,2]
[361657895,1747672232673,-818.77556515,0.00019072,2]
[361657897,1747672232682,-1030.69069747,0.00019078,2]
[361657899,1747672232691,-210.231655,0.00019078,2]
[361657901,1747672232702,-500.0,0.00019177,2]
[361657903,1747672232711,-500.0,0.00019177,2]
[361657905,1747672232724,-500.0,0.00019177,2]
[361657907,1747672232733,-636.08142341,0.00019177,2]
[361657909,1747672232742,-500.0,0.00019177,2]
[361657911,1747672232751,-500.0,0.00019177,2]
[361657913,1747672232761,-189.15647114,0.00019177,2]
[361657915,1747672232770,-500.0,0.00019177,2]
[361657917,1747672232779,-500.0,0.00019177,2]
[361657918,1747672232790,-500.0,0.00019177,2]
[361657920,1747672232800,-500.0,0.00019177,2]
[361657922,1747672232809,-251.24012731,0.00019178,2]
[361657924,1747672232818,-986.33,0.00019178,2]
[361657926,1747672232828,-400.03659295,0.00019178,2]
[361657928,1747672232837,-430.0,0.00019178,2]
[361657930,1747672232846,-430.0,0.00019178,2]
[361657932,1747672232856,-430.0,0.00019178,2]
[361657934,1747672232866,-340.0,0.00019178,2]
[361657936,1747672232875,-430.0,0.00019178,2]
[361657938,1747672232885,-809.37,0.00019178,2]
[361657940,1747672232894,-904.62,0.00019178,2]
[361657942,1747672232904,-430.0,0.00019178,2]
[361657944,1747672232913,-430.0,0.00019178,2]
[361657946,1747672232923,-175.43486957,0.00019178,2]
[361657948,1747672232932,-430.0,0.00019178,2]
[361657950,1747672232941,-299.57859829,0.00019178,2]
[361657952,1747672232951,-558.2,0.00019178,2]
[361657954,1747672232960,-430.0,0.00019178,2]
[361657956,1747672232969,-360.91379009,0.00019178,2]
[361657959,1747672232979,-430.0,0.00019178,2]
[361657961,1747672232989,-392.64844444,0.00019178,2]
[361657963,1747672232999,-430.0,0.00019178,2]
[361657965,1747672233009,-430.0,0.00019178,2]
[361657967,1747672233018,-430.0,0.00019178,2]
[361657969,1747672233028,-430.0,0.00019178,2]
[361657971,1747672233037,-430.0,0.00019178,2]
[361657973,1747672233047,-305.5149904,0.00019178,2]
[361657974,1747672233058,-222.09874793,0.00019178,2]
[361657976,1747672233068,-430.0,0.00019178,2]
[361657978,1747672233079,-494.51258934,0.00019178,2]
[361657980,1747672233089,-420.68463914,0.00019178,2]
[361657981,1747672233101,-430.0,0.00019178,2]
[361657983,1747672233112,-370.0,0.00019178,2]
[361657984,1747672233122,-430.0,0.00019178,2]
[361657986,1747672233133,-430.0,0.00019178,2]
[361657987,1747672233144,-430.0,0.00019178,2]
[361657988,1747672233154,-430.0,0.00019178,2]
[361657989,1747672233165,-430.0,0.00019178,2]
[361657990,1747672233175,-430.0,0.00019178,2]
[361657991,1747672233186,-430.0,0.00019178,2]
[361657992,1747672233195,-430.0,0.00019178,2]
[361657993,1747672233205,-172.85854791,0.00019178,2]
[361657994,1747672233215,-423.24610928,0.00019178,2]
[361657995,1747672233225,-430.0,0.00019178,2]
[361657996,1747672233235,-465.45,0.00019178,2]
[361657997,1747672233246,-422.04823085,0.00019178,2]
[361657998,1747672233256,-430.0,0.00019178,2]
[361657999,1747672233267,-421.94470965,0.00019178,2]
[361658000,1747672233277,-742.96,0.00019178,2]
[361658001,1747672233288,-430.0,0.00019178,2]
[361658002,1747672233298,-421.78770332,0.00019178,2]
[361658003,1747672233308,-430.0,0.00019178,2]
[361658004,1747672233318,-430.0,0.00019178,2]
[361658005,1747672233327,-370.0,0.00019178,2]
[361658006,1747672233337,-430.0,0.00019178,2]
[361658007,1747672233347,-421.59719,0.00019178,2]
[361658008,1747672233358,-430.0,0.00019178,2]
[361658009,1747672233368,-461.41,0.00019178,2]
[361658010,1747672233378,-374.00450926,0.00019178,2]
[361658011,1747672233387,-549.93,0.00019178,2]
[361658012,1747672233397,-430.0,0.00019178,2]
[361658013,1747672233407,-239.08260564,0.00019178,2]
[361658014,1747672233416,-422.29801417,0.00019178,2]
[361658015,1747672233426,-430.0,0.00019178,2]
[361658016,1747672233436,-430.0,0.00019178,2]
[361658017,1747672233446,-430.0,0.00019178,2]
[361658018,1747672233455,-457.78,0.00019178,2]
[361658019,1747672233465,-480.91890491,0.00019178,2]
[361658020,1747672233474,-430.0,0.00019178,2]
[361658021,1747672233483,-430.0,0.00019178,2]
[361658022,1747672233493,-430.0,0.00019178,2]
[361658023,1747672233503,-430.0,0.00019178,2]
[361658024,1747672233512,-430.0,0.00019178,2]
[361658025,1747672233523,-430.0,0.00019178,2]
[361658026,1747672233532,-421.75488087,0.00019178,2]
[361658027,1747672233542,-430.0,0.00019178,2]
[361658028,1747672233551,-347.32592892,0.00019178,2]
[361658029,1747672233560,-421.12431529,0.00019178,2]
[361658030,1747672233569,-675.37,0.00019178,2]
[361658031,1747672233579,-430.0,0.00019178,2]
[361658032,1747672233589,-390.0,0.00019178,2]
[361658033,1747672233598,-430.0,0.00019178,2]
[361658034,1747672233611,-837.21,0.00019178,2]
[361658035,1747672233621,-476.40254611,0.00019178,2]
[361658036,1747672233631,-430.0,0.00019178,2]
[361658037,1747672233640,-1000.0,0.00019178,2]
[361658038,1747672233650,-199.05244156,0.00019178,2]
[361658039,1747672233660,-430.0,0.00019178,2]
[361658040,1747672233669,-430.0,0.00019178,2]
[361658041,1747672233679,-430.0,0.00019178,2]
[361658042,1747672233688,-430.0,0.00019178,2]
[361658043,1747672233698,-430.0,0.00019178,2]
[361658044,1747672233707,-430.0,0.00019178,2]
[361658045,1747672233719,-430.0,0.00019178,2]
[361658046,1747672233729,-472.34305992,0.00019178,2]
[361658047,1747672233739,-430.0,0.00019178,2]
[361658048,1747672233750,-430.0,0.00019178,2]
[361658049,1747672233760,-430.0,0.00019178,2]
[361658050,1747672233770,-474.53,0.00019178,2]
[361658051,1747672233780,-430.0,0.00019178,2]
[361658052,1747672233791,-430.0,0.00019178,2]
[361658053,1747672233801,-430.0,0.00019178,2]
[361658054,1747672233811,-300.0,0.00019178,2]
[361658055,1747672233820,-603.21,0.00019178,2]
[361658056,1747672233830,-430.0,0.00019178,2]
[361658057,1747672233839,-422.26089974,0.00019178,2]
[361658058,1747672233849,-430.0,0.00019178,2]
[361658059,1747672233859,-430.0,0.00019178,2]
[361658060,1747672233868,-423.29739073,0.00019178,2]
[361658061,1747672233878,-430.0,0.00019178,2]
[361658062,1747672233888,-430.0,0.00019178,2]
[361658063,1747672233897,-450.0,0.00019178,2]
[361658064,1747672233907,-430.0,0.00019178,2]
[361658065,1747672233917,-430.0,0.00019178,2]
[361658066,1747672233927,-430.0,0.00019178,2]
[361658067,1747672233936,-430.0,0.00019178,2]
[361658068,1747672233946,-430.0,0.00019178,2]
[361658069,1747672233956,-401.14289384,0.00019178,2]
[361658070,1747672233966,-450.0,0.00019178,2]
[361658071,1747672233975,-450.0,0.00019178,2]
[361658072,1747672233985,-430.0,0.00019178,2]
[361658073,1747672234113,-430.0,0.00019178,2]
[361658074,1747672234124,-430.0,0.00019178,2]
[361658075,1747672234134,-430.0,0.00019178,2]
[361658076,1747672234144,-426.10378758,0.00019178,2]
[361658077,1747672234154,-424.731169,0.00019178,2]
[361658078,1747672234164,-430.0,0.00019178,2]
[361658079,1747672234175,-430.0,0.00019178,2]
[361658080,1747672234186,-525.3388884,0.00019178,2]
[361658081,1747672234196,-430.0,0.00019178,2]
[361658082,1747672234205,-430.0,0.00019178,2]
[361658083,1747672234215,-711.96,0.00019178,2]
[361658084,1747672234226,-430.0,0.00019178,2]
[361658085,1747672234237,-430.0,0.00019178,2]
[361658086,1747672234247,-421.44172793,0.00019178,2]
[361658087,1747672234258,-430.0,0.00019178,2]
[361658088,1747672234268,-430.0,0.00019178,2]
[361658089,1747672234278,-430.0,0.00019178,2]
[361658090,1747672234287,-430.0,0.00019178,2]
[361658091,1747672234297,-430.0,0.00019178,2]
[361658092,1747672234307,-430.0,0.00019178,2]
[361658093,1747672234317,-450.0,0.00019178,2]
[361658094,1747672234327,-430.0,0.00019178,2]
[361658095,1747672234337,-475.81052604,0.00019178,2]
[361658096,1747672234347,-519.64717752,0.00019178,2]
[361658097,1747672234358,-430.0,0.00019178,2]
[361658098,1747672234368,-430.0,0.00019178,2]
[361658099,1747672234378,-430.0,0.00019178,2]
[361658100,1747672234389,-430.0,0.00019178,2]
[361658101,1747672234400,-430.0,0.00019178,2]
[361658102,1747672234410,-430.0,0.00019178,2]
[361658103,1747672234421,-470.19,0.00019178,2]
[361658104,1747672234431,-1422.7,0.00019178,2]
[361658105,1747672234441,-430.0,0.00019178,2]
[361658106,1747672234451,-430.0,0.00019178,2]
[361658107,1747672234461,-387.63610876,0.00019178,2]
[361658108,1747672234471,-591.91,0.00019178,2]
[361658109,1747672234480,-501.23,0.00019178,2]
[361658110,1747672234491,-420.0,0.00019178,2]
[361658111,1747672234502,-430.0,0.00019178,2]
[361658112,1747672234512,-392.09651185,0.00019178,2]
[361658113,1747672234522,-430.0,0.00019178,2]
[361658114,1747672234532,-503.87742256,0.00019178,2]
[361658115,1747672234542,-450.0,0.00019178,2]
[361658116,1747672234551,-430.0,0.00019178,2]
[361658117,1747672234561,-430.0,0.00019178,2]
[361658118,1747672234571,-430.0,0.00019178,2]
[361658119,1747672234580,-430.0,0.00019178,2]
[361658120,1747672234589,-569.41,0.00019178,2]
[361658121,1747672234599,-430.0,0.00019178,2]
[361658122,1747672234610,-430.0,0.00019178,2]
[361658123,1747672234620,-430.0,0.00019178,2]
[361658124,1747672234629,-430.0,0.00019178,2]
[361658125,1747672234638,-430.0,0.00019178,2]
[361658126,1747672234648,-430.0,0.00019178,2]
[361658127,1747672234657,-430.0,0.00019178,2]
[361658128,1747672234666,-431.41057522,0.00019178,2]
[361658129,1747672234676,-401.28251717,0.00019178,2]
[361658130,1747672234685,-430.0,0.00019178,2]
[361658131,1747672234695,-400.60979183,0.00019178,2]
[361658132,1747672234704,-403.93580659,0.00019178,2]
[361658133,1747672234716,-400.92012363,0.00019178,2]
[361658134,1747672234725,-430.0,0.00019178,2]
[361658135,1747672234735,-400.91268128,0.00019178,2]
[361658136,1747672234744,-450.0,0.00019178,2]
[361658137,1747672234755,-401.70777653,0.00019178,2]
[361658138,1747672234765,-470.88658429,0.00019178,2]
[361658139,1747672234774,-2216.44,0.00019178,2]
[361658140,1747672234784,-430.0,0.00019178,2]
[361658141,1747672234796,-430.0,0.00019178,2]
[361658142,1747672234806,-430.0,0.00019178,2]
[361658143,1747672234816,-430.0,0.00019178,2]
[361658144,1747672234826,-430.0,0.00019178,2]
[361658145,1747672234835,-430.0,0.00019178,2]
[361658146,1747672234844,-430.0,0.00019178,2]
[361658147,1747672234854,-430.0,0.00019178,2]
[361658148,1747672234864,-430.0,0.00019178,2]
[361658149,1747672234873,-430.0,0.00019178,2]
[361658150,1747672234883,-430.0,0.00019178,2]
[361658151,1747672234892,-402.22366325,0.00019178,2]
[361658152,1747672234902,-430.0,0.00019178,2]
[361658153,1747672234911,-1009.39646126,0.00019178,2]
[361658154,1747672234921,-444.08,0.00019178,2]
[361658155,1747672234930,-504.06427936,0.00019178,2]
[361658156,1747672234939,-430.0,0.00019178,2]
[361658157,1747672234949,-430.0,0.00019178,2]
[361658158,1747672234958,-894.07,0.00019178,2]
[361658159,1747672234967,-430.0,0.00019178,2]
[361658160,1747672234977,-325.8156317,0.00019178,2]
[361658161,1747672234986,-401.50317887,0.00019178,2]
[361658162,1747672234996,-430.0,0.00019178,2]
[361658163,1747672235006,-417.36227462,0.00019178,2]
[361658164,1747672235015,-430.0,0.00019178,2]
[361658165,1747672235025,-179.30412007,0.00019178,2]
[361658166,1747672235034,-401.79667671,0.00019178,2]
[361658167,1747672235044,-430.0,0.00019178,2]
[361658168,1747672235054,-494.37,0.00019178,2]
[361658169,1747672235065,-2026.42,0.00019178,2]
[361658170,1747672235074,-430.0,0.00019178,2]
[361658171,1747672235084,-430.0,0.00019178,2]
[361658172,1747672235093,-430.0,0.00019178,2]
[361658173,1747672235110,-320.0,0.00019178,2]
[361658174,1747672235124,-430.0,0.00019178,2]
[361658175,1747672235134,-430.0,0.00019178,2]
[361658176,1747672235145,-430.0,0.00019178,2]
[361658177,1747672235155,-430.0,0.00019178,2]
[361658178,1747672235165,-370.0,0.00019178,2]
[361658179,1747672235175,-430.0,0.00019178,2]
[361658180,1747672235185,-430.0,0.00019178,2]
[361658181,1747672235195,-430.0,0.00019178,2]
[361658182,1747672235205,-571.50728518,0.00019178,2]
[361658183,1747672235214,-532.53,0.00019178,2]
[361658184,1747672235224,-430.0,0.00019178,2]
[361658185,1747672235233,-630.61,0.00019178,2]
[361658186,1747672235243,-401.38747886,0.00019178,2]
[361658187,1747672235253,-450.0,0.00019178,2]
[361658188,1747672235262,-430.0,0.00019178,2]
[361658189,1747672235271,-402.05383914,0.00019178,2]